bitfinex-derivatives/quotes_BTCF0:USTF0_20250509
["timestamp","ask_amount","ask_price","bid_price","bid_amount"]
[1746804835239,0.2329185,102760.0,102750.0,0.48712334]
[1746804835439,0.2329185,102760.0,102750.0,0.33012334]
[1746804835640,0.2329185,102760.0,102750.0,0.33012388]
[1746804836234,0.5937185,102760.0,102750.0,0.33012388]
[1746804836440,0.6342185,102760.0,102750.0,0.33012388]
[1746804836638,0.5937185,102760.0,102750.0,0.48708388]
[1746804837039,0.5937185,102760.0,102750.0,0.68172128]
[1746804838145,0.5937185,102760.0,102750.0,0.48708388]
[1746804838645,0.78144411,102760.0,102750.0,0.48708388]
[1746804838846,0.82274411,102760.0,102750.0,0.4733236]
[1746804839037,0.6350185,102760.0,102750.0,0.4733236]
[1746804839237,0.6350185,102760.0,102750.0,0.3133236]
[1746804840242,0.2742185,102760.0,102750.0,0.32708388]
[1746804840548,0.3171999,102780.0,102770.0,0.1945995]
[1746804840843,0.3587999,102780.0,102770.0,1.08570952]
[1746804841045,0.3587999,102780.0,102770.0,1.12700952]
[1746804841250,0.3587999,102780.0,102770.0,1.19660277]
[1746804842150,0.3171999,102780.0,102770.0,1.19660277]
[1746804842348,0.3171999,102780.0,102770.0,1.19660674]
[1746804842544,0.3171999,102780.0,102770.0,1.19660675]
[1746804842846,0.3571999,102780.0,102770.0,1.19660675]
[1746804843046,0.3591999,102780.0,102770.0,1.38433236]
[1746804843248,0.3621999,102780.0,102770.0,1.38433236]
[1746804843434,0.3221999,102780.0,102770.0,1.38433236]
[1746804843640,0.0789667,102780.0,102770.0,1.55053286]
[1746804844047,0.21250682,102800.0,102770.0,1.55053286]
[1746804844252,0.21250682,102800.0,102790.0,0.56228589]
[1746804844446,0.17250682,102800.0,102790.0,0.891034]
[1746804844646,0.36704962,102800.0,102790.0,0.93967009]
[1746804844844,0.40674962,102800.0,102790.0,1.03696055]
[1746804845041,0.41650419,102800.0,102790.0,1.03696055]
[1746804845247,0.52313361,102820.0,102790.0,1.64820446]
[1746804845248,0.12323361,102820.0,102790.0,1.64820446]
[1746804845444,0.12323361,102820.0,102810.0,0.9445353]
[1746804845646,0.14604466,102830.0,102810.0,0.92183961]
[1746804845844,0.004,102840.0,102830.0,0.194486]
[1746804846045,0.004,102840.0,102830.0,0.9286]
[1746804846244,0.004,102840.0,102830.0,0.94287439]
[1746804846245,0.1984671,102840.0,102830.0,0.94287439]
[1746804846449,0.1984671,102840.0,102830.0,1.2124]
[1746804846647,0.004,102840.0,102830.0,1.11515715]
[1746804846952,0.004,102840.0,102830.0,1.11511371]
[1746804847146,0.004,102840.0,102830.0,0.9273881]
[1746804847340,0.006,102840.0,102830.0,1.11511371]
[1746804847850,0.006,102840.0,102830.0,1.17364924]
[1746804848053,0.007,102840.0,102830.0,1.17364924]
[1746804848243,0.007,102840.0,102830.0,1.17464924]
[1746804848445,0.004,102840.0,102830.0,1.17464924]
[1746804848749,0.1984671,102840.0,102830.0,1.36913524]
[1746804848948,0.1984671,102840.0,102830.0,1.36910227]
[1746804849249,0.2916919,102850.0,102840.0,0.1944671]
[1746804849448,0.2430761,102850.0,102840.0,0.91548022]
[1746804849643,0.14841918,102860.0,102840.0,0.72101312]
[1746804849840,0.14841918,102860.0,102850.0,0.27176028]
[1746804850049,0.14841918,102860.0,102850.0,0.2727917]
[1746804850348,0.39468032,102860.0,102850.0,0.37226]
[1746804850553,0.43468032,102860.0,102850.0,0.46950315]
[1746804850741,0.43468032,102860.0,102850.0,0.42620315]
[1746804850945,0.80530665,102860.0,102850.0,0.42620315]
[1746804851145,0.56204551,102860.0,102850.0,0.26620315]
[1746804851444,0.81230665,102860.0,102850.0,0.26620315]
[1746804851754,0.80830665,102860.0,102850.0,0.26620315]
[1746804851954,0.56604551,102860.0,102850.0,0.26620315]
[1746804852249,0.16524551,102860.0,102850.0,0.68366343]
[1746804852456,0.007,102860.0,102850.0,0.96992457]
[1746804852847,0.007,102860.0,102850.0,0.97090753]
[1746804853048,0.007,102860.0,102850.0,0.98466781]
[1746804853352,0.007,102860.0,102850.0,1.14466781]
[1746804853549,0.2014293,102860.0,102850.0,1.07811163]
[1746804853952,0.1984293,102860.0,102850.0,1.32437277]
[1746804854758,0.1944293,102860.0,102850.0,1.32437277]
[1746804856051,0.2956349,102870.0,102860.0,0.1944293]
[1746804856359,0.2956349,102870.0,102860.0,0.89875072]
[1746804856556,0.2956349,102870.0,102860.0,0.94165072]
[1746804856759,0.1984261,102870.0,102860.0,1.03886551]
[1746804857053,0.004,102870.0,102860.0,1.03886551]
[1746804857247,0.2430024,102880.0,102870.0,0.1944104]
[1746804857445,0.2430024,102880.0,102870.0,1.08843156]
[1746804857648,0.3339794,102890.0,102880.0,0.1943915]
[1746804857859,0.3339794,102890.0,102880.0,0.6410915]
[1746804858353,0.1943896,102890.0,102880.0,1.06111292]
[1746804858658,0.437949,102900.0,102890.0,0.1943726]
[1746804858857,0.437949,102900.0,102890.0,0.82371288]
[1746804859054,0.437949,102900.0,102890.0,0.86571288]
[1746804859254,0.437949,102900.0,102890.0,1.12290877]
[1746804860160,0.440949,102900.0,102890.0,1.12290877]
[1746804860457,0.440949,102900.0,102890.0,0.92853617]
[1746804860760,0.480549,102900.0,102890.0,1.10297617]
[1746804860961,0.480549,102900.0,102890.0,1.29734877]
[1746804861158,0.111,102900.0,102890.0,1.54360991]
[1746804861351,0.3053537,102900.0,102890.0,1.54360991]
[1746804861747,0.3053537,102900.0,102890.0,1.29734877]
[1746804861951,0.111,102900.0,102890.0,1.29734877]
[1746804862146,0.111,102900.0,102890.0,1.64360991]
[1746804862757,0.111,102900.0,102890.0,1.74079791]
[1746804863362,0.0402,102920.0,102910.0,0.1943348]
[1746804863548,0.2954683,102930.0,102920.0,0.1943159]
[1746804863748,0.3368683,102930.0,102920.0,0.9922359]
[1746804863947,0.3368683,102930.0,102920.0,1.08942235]
[1746804864162,0.3368683,102930.0,102920.0,1.05510645]
[1746804864460,0.3766683,102930.0,102920.0,1.05510645]
[1746804864661,0.3766683,102930.0,102920.0,1.01390645]
[1746804865053,0.3766683,102930.0,102920.0,1.04822235]
[1746804865254,0.3826683,102930.0,102920.0,0.53430645]
[1746804865754,0.3826683,102930.0,102920.0,1.99310645]
[1746804866151,0.3866683,102930.0,102920.0,1.99310645]
[1746804866549,0.3866683,102930.0,102920.0,2.35390645]
[1746804867059,0.3866683,102930.0,102920.0,2.17610645]
[1746804867255,0.3866683,102930.0,102920.0,1.77230645]
[1746804867453,0.4260683,102930.0,102920.0,1.77230645]
[1746804867762,0.7868683,102930.0,102920.0,1.77230645]
[1746804867957,0.4260683,102930.0,102920.0,1.77230645]
[1746804868160,0.4260683,102930.0,102920.0,2.13310645]
[1746804868363,0.4260683,102930.0,102920.0,1.81370645]
[1746804868657,0.3866683,102930.0,102920.0,2.36882235]
[1746804868854,0.3866683,102930.0,102920.0,2.41052235]
[1746804869054,0.3866683,102930.0,102920.0,2.21620645]
[1746804869457,0.3866683,102930.0,102920.0,2.17450645]
[1746804870765,0.7474683,102930.0,102920.0,1.81370645]
[1746804870960,0.93483365,102930.0,102920.0,1.77230645]
[1746804871260,0.93483365,102930.0,102920.0,1.77226645]
[1746804871563,0.4269683,102930.0,102920.0,0.46658235]
[1746804871766,0.4269683,102930.0,102920.0,0.31306645]
[1746804871965,0.61433365,102930.0,102920.0,0.27226645]
[1746804872265,0.7877683,102930.0,102920.0,0.27226645]
[1746804873061,0.97513365,102930.0,102920.0,0.27226645]
[1746804873366,0.97513365,102930.0,102920.0,0.17508]
[1746804873758,0.7877683,102930.0,102920.0,0.46655402]
[1746804873961,0.7877683,102930.0,102920.0,0.27223812]
[1746804874268,0.7877683,102930.0,102920.0,0.28699912]
[1746804875165,0.7877683,102930.0,102920.0,0.48131502]
[1746804875364,0.7877683,102930.0,102920.0,0.32919912]
[1746804875560,0.4269683,102930.0,102920.0,0.52353695]
[1746804875763,0.3380895,102930.0,102920.0,1.0717023]
[1746804876062,0.3380895,102930.0,102920.0,1.3119023]
[1746804876458,0.3380895,102930.0,102920.0,1.32566258]
[1746804877264,0.3380895,102930.0,102920.0,1.32566518]
[1746804877466,0.2982895,102930.0,102920.0,1.32566518]
[1746804877864,0.2922895,102930.0,102920.0,1.32566518]
[1746804878055,0.2932895,102930.0,102920.0,1.32566518]
[1746804878473,0.2902895,102930.0,102920.0,1.32566518]
[1746804879372,0.2902895,102930.0,102920.0,2.82566518]
[1746804879965,0.2902895,102930.0,102920.0,2.63829983]
[1746804880167,0.2003116,102930.0,102920.0,2.82566518]
[1746804881068,0.2003116,102930.0,102920.0,2.98566518]
[1746804881265,0.2003116,102930.0,102920.0,2.82566518]
[1746804881974,0.2428116,102930.0,102920.0,2.82566518]
[1746804885367,0.2003116,102930.0,102920.0,2.82566518]
[1746804886273,0.2003116,102930.0,102920.0,2.81087965]
[1746804887368,0.2003116,102930.0,102920.0,0.37955812]
[1746804887369,0.74847695,102930.0,102920.0,0.37955812]
[1746804887571,1.0167423,102930.0,102920.0,0.25715812]
[1746804887771,1.1539023,102930.0,102920.0,0.16]
[1746804887976,1.4039023,102930.0,102920.0,0.22078802]
[1746804888170,0.1943348,102910.0,102900.0,0.23617888]
[1746804888567,0.2752348,102910.0,102900.0,0.333337]
[1746804888768,0.2752348,102910.0,102900.0,0.38219774]
[1746804889170,0.28504864,102910.0,102900.0,0.42419774]
[1746804889373,0.2752348,102910.0,102900.0,0.42719774]
[1746804889679,0.2752348,102910.0,102900.0,0.42919774]
[1746804890885,0.2752348,102910.0,102900.0,0.38719774]
[1746804891271,0.2752348,102910.0,102900.0,0.42569774]
[1746804891770,0.2762348,102910.0,102900.0,0.42269774]
[1746804892072,0.82440015,102910.0,102900.0,0.42269774]
[1746804892276,0.82440015,102910.0,102900.0,0.38419774]
[1746804892586,0.86490015,102910.0,102900.0,0.34569774]
[1746804892870,0.86490015,102910.0,102900.0,0.09915812]
[1746804893071,0.86690015,102910.0,102900.0,0.09715812]
[1746804893275,0.6795348,102910.0,102900.0,0.09715812]
[1746804893472,0.68939034,102910.0,102900.0,0.13955812]
[1746804893680,0.68939034,102910.0,102900.0,0.18105812]
[1746804895078,0.6795348,102910.0,102900.0,0.18105812]
[1746804896877,0.6795348,102910.0,102900.0,0.13955812]
[1746804897982,0.6795348,102910.0,102900.0,0.17875812]
[1746804899184,0.6795348,102910.0,102900.0,0.37311182]
[1746804899386,0.6400348,102910.0,102900.0,0.3868721]
[1746804899685,0.6400348,102910.0,102900.0,0.4278721]
[1746804900081,0.2792348,102910.0,102900.0,0.4278721]
[1746804900387,0.2367348,102910.0,102900.0,0.4278721]
[1746804901178,0.2367348,102910.0,102900.0,0.7886721]
[1746804901581,0.2367348,102910.0,102900.0,0.97603745]
[1746804901777,0.1983348,102910.0,102900.0,0.97603745]
[1746804902189,0.1983348,102910.0,102900.0,1.13603745]
[1746804902687,0.1983348,102910.0,102900.0,1.1409921]
[1746804902882,0.2366348,102910.0,102900.0,1.32835745]
[1746804903486,0.1963348,102910.0,102900.0,1.32835745]
[1746804903691,0.1963348,102910.0,102900.0,1.5157228]
[1746804904081,0.1963348,102910.0,102900.0,1.6157228]
[1746804904792,0.1963348,102910.0,102900.0,1.32835745]
[1746804906991,0.1963348,102910.0,102900.0,1.42835745]
[1746804907185,0.1963348,102910.0,102900.0,1.32835745]
[1746804907385,0.1963348,102910.0,102900.0,1.42835745]
[1746804907581,0.1963348,102910.0,102900.0,1.3430266]
[1746804908190,0.1963348,102910.0,102900.0,1.4430266]
[1746804908385,0.2954639,102930.0,102920.0,0.1943159]
[1746804908585,0.2889868,102930.0,102920.0,0.60275068]
[1746804908790,0.2889868,102930.0,102920.0,0.72565068]
[1746804908991,0.2889868,102930.0,102920.0,0.8228088]
[1746804909191,0.2889868,102930.0,102920.0,0.9828088]
[1746804909794,0.2939868,102930.0,102920.0,0.79544345]
[1746804909996,0.2939868,102930.0,102920.0,0.9828088]
[1746804910496,0.2899868,102930.0,102920.0,0.9828088]
[1746804910695,0.2909868,102930.0,102920.0,0.9828088]
[1746804910896,0.2909868,102930.0,102920.0,1.1716488]
[1746804912691,0.2909868,102930.0,102920.0,1.18633922]
[1746804912887,0.2909868,102930.0,102920.0,2.33515007]
[1746804913384,0.2909868,102930.0,102920.0,2.17515007]
[1746804914095,0.2909868,102930.0,102920.0,2.33515007]
[1746804914797,0.2909868,102930.0,102920.0,2.14778472]
[1746804915291,0.2909868,102930.0,102920.0,2.17515007]
[1746804915996,0.2909868,102930.0,102920.0,2.17515663]
[1746804916388,0.2909868,102930.0,102920.0,1.98779128]
[1746804917505,0.2488868,102930.0,102920.0,2.53595663]
[1746804917793,0.2488868,102930.0,102920.0,2.53596086]
[1746804917999,0.2003115,102930.0,102920.0,2.54577547]
[1746804918199,0.2003115,102930.0,102920.0,2.70577547]
[1746804919094,0.2417115,102930.0,102920.0,2.70577547]
[1746804919297,0.2417115,102930.0,102920.0,2.53596086]
[1746804919604,0.2417115,102930.0,102920.0,2.53595747]
[1746804920099,0.2417115,102930.0,102920.0,2.69595747]
[1746804921404,0.2417115,102930.0,102920.0,2.69595403]
[1746804922103,0.2417115,102930.0,102920.0,2.70575506]
[1746804922903,0.2417115,102930.0,102920.0,2.50858681]
[1746804923104,0.2417115,102930.0,102920.0,2.69595216]
[1746804924297,0.2417115,102930.0,102920.0,2.70545151]
[1746804925804,0.2417115,102930.0,102920.0,2.69595216]
[1746804927118,0.2417115,102930.0,102920.0,2.53595216]
[1746804927416,0.2417115,102930.0,102920.0,1.97402653]
[1746804927611,0.2804115,102930.0,102920.0,1.97402653]
[1746804927818,0.2804115,102930.0,102920.0,2.33482653]
[1746804928411,0.2417115,102930.0,102920.0,2.52219188]
[1746804928612,0.2417115,102930.0,102920.0,2.53595216]
[1746804928817,0.0474,102930.0,102920.0,2.53595216]
[1746804929014,0.241697,102930.0,102920.0,2.53595216]
[1746804930015,0.006,102930.0,102920.0,2.53595216]
[1746804930209,0.006,102930.0,102920.0,2.92047751]
[1746804930520,0.2333593,102950.0,102940.0,0.1942782]
[1746804930712,0.2333593,102950.0,102940.0,1.13057634]
[1746804930911,0.2333593,102950.0,102940.0,1.24667634]
[1746804931111,0.2333593,102950.0,102940.0,1.34383446]
[1746804932419,0.2343593,102950.0,102940.0,1.34383446]
[1746804932623,0.2343593,102950.0,102940.0,1.35832029]
[1746804933120,0.2343593,102950.0,102940.0,1.51833058]
[1746804933320,0.0401,102950.0,102940.0,1.51833058]
[1746804933523,0.2343593,102950.0,102940.0,1.51833058]
[1746804934311,0.2343593,102950.0,102940.0,1.51832843]
[1746804934817,0.2343593,102950.0,102940.0,0.66090488]
[1746804935016,1.20646465,102950.0,102940.0,0.2863446]
[1746804935322,0.1942782,102940.0,102930.0,0.34587427]
[1746804935623,0.6331782,102940.0,102930.0,0.44301351]
[1746804936316,0.7931782,102940.0,102930.0,0.62301351]
[1746804936513,0.4323782,102940.0,102930.0,1.43271177]
[1746804936708,0.4323782,102940.0,102930.0,1.65529177]
[1746804936709,0.4343782,102940.0,102930.0,1.65529177]
[1746804937116,0.2763782,102940.0,102930.0,1.65529177]
[1746804937318,0.2373782,102940.0,102930.0,1.64153149]
[1746804937515,0.2373782,102940.0,102930.0,1.65529177]
[1746804937913,0.42274355,102940.0,102930.0,0.81828914]
[1746804938221,0.98174355,102940.0,102930.0,0.45948914]
[1746804938525,0.97974355,102940.0,102930.0,0.45948914]
[1746804938726,0.97974355,102940.0,102930.0,0.11361487]
[1746804939024,1.07689155,102940.0,102930.0,0.11361487]
[1746804939216,1.07689155,102940.0,102930.0,0.01647563]
[1746804939828,0.1943159,102920.0,102910.0,1.34328]
[1746804940215,0.62288125,102920.0,102910.0,1.44042868]
[1746804940416,0.4355159,102920.0,102910.0,1.44042868]
[1746804941012,0.62288125,102920.0,102910.0,1.44042868]
[1746804941417,0.98568125,102920.0,102910.0,1.45512001]
[1746804941726,0.99523688,102920.0,102910.0,1.45512001]
[1746804942117,0.83523688,102920.0,102910.0,1.27512001]
[1746804942319,0.83523688,102920.0,102910.0,1.45512001]
[1746804942917,0.83723688,102920.0,102910.0,1.45512001]
[1746804943825,1.18440488,102920.0,102900.0,0.6523296]
[1746804944025,0.1943537,102900.0,102890.0,0.03971314]
[1746804944327,0.1943726,102890.0,102880.0,0.0489908]
[1746804944529,0.1943915,102880.0,102870.0,0.6446288]
[1746804944728,0.82435685,102880.0,102870.0,0.6446288]
[1746804944918,1.0117222,102880.0,102870.0,0.70638416]
[1746804945224,1.1717222,102880.0,102870.0,0.62410377]
[1746804945618,1.2689262,102880.0,102870.0,0.47799267]
[1746804945823,1.2689262,102880.0,102870.0,0.26221117]
[1746804946028,1.2689262,102880.0,102870.0,0.18012997]
[1746804946218,1.4484862,102880.0,102870.0,0.10944907]
[1746804946413,1.4484862,102880.0,102870.0,0.07431417]
[1746804946622,1.4484862,102880.0,102870.0,7e-08]
[1746804946922,1.4504862,102880.0,102870.0,7e-08]
[1746804947525,1.26312085,102880.0,102870.0,7e-08]
[1746804947826,0.1944293,102860.0,102850.0,0.25974]
[1746804948027,0.74259465,102860.0,102850.0,0.38534029]
[1746804948227,0.82119465,102860.0,102850.0,0.48254563]
[1746804948629,0.82119465,102860.0,102850.0,0.49714839]
[1746804949422,0.82119465,102860.0,102850.0,0.50114839]
[1746804951523,0.6338293,102860.0,102850.0,0.50114839]
[1746804952031,0.6338293,102860.0,102850.0,0.69559659]
[1746804952231,0.2347293,102860.0,102850.0,1.05639659]
[1746804952524,0.1944104,102870.0,102860.0,0.1944293]
[1746804952829,0.2347104,102870.0,102860.0,0.76152959]
[1746804953215,0.2347104,102870.0,102860.0,0.85874438]
[1746804953627,0.2915986,102880.0,102870.0,0.1944104]
[1746804953829,0.3318986,102880.0,102870.0,0.58083069]
[1746804954225,0.3318986,102880.0,102870.0,0.67804548]
[1746804955330,0.3338986,102880.0,102870.0,0.67804548]
[1746804955718,0.3338986,102880.0,102870.0,0.71774548]
[1746804955922,0.3358986,102880.0,102870.0,0.71774548]
[1746804956528,0.2955986,102880.0,102870.0,0.90511083]
[1746804957834,0.2935986,102880.0,102870.0,1.26591083]
[1746804958236,0.2935986,102880.0,102870.0,1.23854548]
[1746804958539,0.2915986,102880.0,102870.0,1.42591083]
[1746804959134,0.2915986,102880.0,102870.0,1.26591083]
[1746804961328,0.24297,102890.0,102880.0,0.1943915]
[1746804961536,0.5551537,102900.0,102890.0,0.1943726]
[1746804961833,0.1943537,102900.0,102890.0,1.16037824]
[1746804962030,0.1943537,102900.0,102890.0,1.25756469]
[1746804962238,0.1943537,102900.0,102890.0,1.41756469]
[1746804963141,0.1943537,102900.0,102890.0,1.07019934]
[1746804963330,0.1943537,102900.0,102890.0,1.07219934]
[1746804964139,0.1943537,102900.0,102890.0,1.07419934]
[1746804964639,0.1943537,102900.0,102890.0,1.26156469]
[1746804964828,0.1943537,102900.0,102890.0,1.25956469]
[1746804965029,0.1943537,102900.0,102890.0,1.25756469]
[1746804965732,0.1943537,102900.0,102890.0,1.07019934]
[1746804966129,0.1943537,102900.0,102890.0,1.23019934]
[1746804967130,0.1943537,102900.0,102890.0,1.25756469]
[1746804969841,0.1943537,102900.0,102890.0,1.07019934]
[1746804970039,0.38171905,102900.0,102890.0,0.87582674]
[1746804970240,0.98031905,102900.0,102890.0,0.13778645]
[1746804970839,0.98031905,102900.0,102890.0,0.09718645]
[1746804971233,0.1943726,102890.0,102880.0,0.25284]
[1746804971541,0.82033795,102890.0,102880.0,0.31162645]
[1746804971734,0.6329726,102890.0,102880.0,0.31162645]
[1746804972244,0.82033795,102890.0,102880.0,0.27222645]
[1746804972435,0.82033795,102890.0,102880.0,0.27422645]
[1746804972632,0.82033795,102890.0,102880.0,0.27622645]
[1746804973028,0.6329726,102890.0,102880.0,0.31602645]
[1746804973230,0.0377,102890.0,102880.0,1.0996833]
[1746804973441,0.1943544,102900.0,102890.0,0.291536]
[1746804973743,0.2343544,102900.0,102890.0,0.20650029]
[1746804974039,0.2343544,102900.0,102890.0,0.85885934]
[1746804974634,0.2343544,102900.0,102890.0,0.66448674]
[1746804975244,0.46091975,102900.0,102890.0,0.17808645]
[1746804975442,0.1943726,102890.0,102880.0,0.21464]
[1746804975637,0.6327726,102890.0,102880.0,0.57393179]
[1746804975844,0.2719726,102890.0,102880.0,0.51502674]
[1746804976137,0.2719726,102890.0,102880.0,0.70941824]
[1746804976343,0.2719726,102890.0,102880.0,0.51502674]
[1746804977044,0.2719726,102890.0,102880.0,0.71141824]
[1746804977241,0.2328726,102890.0,102880.0,0.71141824]
[1746804977443,0.2328726,102890.0,102880.0,0.89878359]
[1746804977942,0.0385,102890.0,102880.0,1.25958359]
[1746804978140,0.232861,102900.0,102890.0,0.1943726]
[1746804978344,0.232861,102900.0,102890.0,0.58493824]
[1746804978643,0.232861,102900.0,102890.0,0.94573824]
[1746804978840,0.232861,102900.0,102890.0,0.85556878]
[1746804979044,0.232861,102900.0,102890.0,0.49476878]
[1746804979343,0.270061,102900.0,102890.0,0.85556878]
[1746804981037,0.270061,102900.0,102890.0,0.49476878]
[1746804982846,0.270061,102900.0,102890.0,1.04293413]
[1746804983235,0.3401067,102910.0,102900.0,0.1943537]
[1746804983436,0.3779067,102910.0,102900.0,1.15725934]
[1746804983644,0.3779067,102910.0,102900.0,0.96989399]
[1746804983835,0.3779067,102910.0,102900.0,1.25444579]
[1746804984037,0.1943485,102910.0,102900.0,1.25444579]
[1746804984237,0.40287733,102920.0,102910.0,0.1943348]
[1746804984445,0.40287733,102920.0,102910.0,0.95861207]
[1746804984648,0.40287733,102920.0,102910.0,0.77124672]
[1746804984836,0.40287733,102920.0,102910.0,0.86842372]
[1746804985036,0.42795632,102920.0,102910.0,0.86842372]
[1746804985548,0.42995632,102920.0,102910.0,0.86842372]
[1746804986342,0.46955632,102920.0,102910.0,0.86842372]
[1746804986741,0.47155632,102920.0,102910.0,0.86842372]
[1746804987449,0.43195632,102920.0,102910.0,0.86842372]
[1746804988645,0.3332902,102920.0,102910.0,0.86842372]
[1746804989748,0.3332902,102920.0,102910.0,0.88319941]
[1746804990947,0.3332902,102920.0,102910.0,0.88321627]
[1746804991142,0.3332902,102920.0,102910.0,1.07058162]
[1746804991343,0.0418,102920.0,102910.0,1.07058162]
[1746804991543,0.004,102920.0,102910.0,1.33802162]
[1746804992144,0.004,102920.0,102910.0,1.49802162]
[1746804993147,0.1983159,102920.0,102910.0,1.49802162]
[1746804993347,0.1963159,102920.0,102910.0,1.50002162]
[1746804993950,0.1963159,102920.0,102910.0,1.21265627]
[1746804994255,0.1943159,102920.0,102910.0,1.39901024]
[1746804994454,0.1943159,102920.0,102910.0,1.21364489]
[1746804994652,0.1943159,102920.0,102910.0,0.4920692]
[1746804994856,0.78308125,102920.0,102910.0,0.32816891]
[1746804995053,1.02478125,102920.0,102910.0,0.29056891]
[1746804995350,0.1943537,102900.0,102880.0,0.5551844]
[1746804995552,0.1943537,102900.0,102890.0,0.0405]
[1746804995553,0.83970315,102900.0,102890.0,0.0405]
[1746804995756,0.88829565,102900.0,102890.0,0.0405]
[1746804995952,0.7829303,102900.0,102890.0,0.0405]
[1746804996147,0.7829303,102900.0,102890.0,0.0819]
[1746804996452,0.7829303,102900.0,102890.0,0.37345905]
[1746804996758,0.3321378,102900.0,102890.0,1.04722469]
[1746804996955,0.3321378,102900.0,102890.0,0.90125934]
[1746804997148,0.3321378,102900.0,102890.0,0.54045934]
[1746804997548,0.3331378,102900.0,102890.0,0.54045934]
[1746804997856,0.88130315,102900.0,102890.0,0.13768645]
[1746804998045,0.7326378,102900.0,102890.0,0.33205905]
[1746804998249,0.3331378,102900.0,102890.0,0.37155905]
[1746804998449,0.3341378,102900.0,102890.0,0.49715934]
[1746804998655,0.3341378,102900.0,102890.0,0.37155905]
[1746804998857,0.3728378,102900.0,102890.0,0.37155905]
[1746805000357,0.3728378,102900.0,102890.0,0.30278674]
[1746805001159,0.92100315,102900.0,102890.0,0.09718645]
[1746805001453,0.1943726,102890.0,102880.0,0.28808]
[1746805001659,0.6339726,102890.0,102880.0,0.28808]
[1746805001852,0.6339726,102890.0,102880.0,0.38526645]
[1746805002358,0.83117206,102890.0,102880.0,0.51086674]
[1746805002752,0.64380671,102890.0,102880.0,0.51186674]
[1746805003259,0.64380671,102890.0,102880.0,0.70625824]
[1746805003459,0.64380671,102890.0,102880.0,0.51186674]
[1746805003853,0.64380671,102890.0,102880.0,0.70725824]
[1746805004250,0.28300671,102890.0,102880.0,0.70725824]
[1746805004554,0.2338726,102890.0,102880.0,0.89462359]
[1746805005462,0.2338726,102890.0,102880.0,0.70725824]
[1746805005657,0.24334284,102890.0,102880.0,0.70725824]
[1746805005862,0.28394284,102890.0,102880.0,0.70725824]
[1746805006059,0.2683484,102910.0,102900.0,0.1943537]
[1746805006252,0.3063472,102910.0,102900.0,0.86811934]
[1746805006458,0.3063472,102910.0,102900.0,0.43855399]
[1746805006658,0.3063472,102910.0,102900.0,0.53574988]
[1746805006961,0.3470472,102910.0,102900.0,0.53574988]
[1746805007152,0.3063472,102910.0,102900.0,1.08391523]
[1746805007355,0.3063472,102910.0,102900.0,0.89654988]
[1746805007562,0.3083472,102910.0,102900.0,0.89654988]
[1746805007858,0.2723472,102910.0,102900.0,1.08391523]
[1746805008165,0.2723472,102910.0,102900.0,1.24391523]
[1746805008763,0.2713472,102910.0,102900.0,1.24391523]
[1746805009264,0.2713472,102910.0,102900.0,1.08391523]
[1746805009563,0.2713472,102910.0,102900.0,0.89654988]
[1746805009760,0.2693472,102910.0,102900.0,0.89654988]
[1746805009962,0.2693472,102910.0,102900.0,1.08391523]
[1746805009963,0.3079472,102910.0,102900.0,1.08391523]
[1746805010356,0.3069472,102910.0,102900.0,1.08491523]
[1746805010556,0.3059472,102910.0,102900.0,1.08591523]
[1746805011057,0.2319348,102910.0,102900.0,1.08591523]
[1746805011365,0.41930015,102910.0,102900.0,0.21779589]
[1746805011662,0.45730015,102910.0,102900.0,0.38687589]
[1746805011961,0.2699348,102910.0,102900.0,0.58122959]
[1746805012163,0.2319348,102910.0,102900.0,0.89419523]
[1746805012557,0.2319348,102910.0,102900.0,0.51247618]
[1746805012963,0.2319348,102910.0,102900.0,0.70682988]
[1746805012964,0.2702348,102910.0,102900.0,0.70682988]
[1746805013161,1.1586067,102910.0,102870.0,0.00983765]
[1746805013365,0.38175685,102880.0,102870.0,0.20720029]
[1746805013665,0.1944104,102870.0,102860.0,0.61316556]
[1746805013960,0.08,102870.0,102860.0,0.84789486]
[1746805014160,0.2361104,102870.0,102860.0,1.6588375]
[1746805014356,0.2361104,102870.0,102860.0,1.34587186]
[1746805014556,0.2361104,102870.0,102860.0,1.27704285]
[1746805014759,0.2744104,102870.0,102860.0,1.28204285]
[1746805015065,0.2744104,102870.0,102860.0,1.22992988]
[1746805015863,0.2361104,102870.0,102860.0,1.22992988]
[1746805016057,0.2361104,102870.0,102860.0,1.10432959]
[1746805016263,0.2361104,102870.0,102860.0,1.22992988]
[1746805016463,0.340205,102880.0,102870.0,0.1944104]
[1746805016762,0.2429529,102900.0,102890.0,0.1943726]
[1746805016961,0.3318444,102900.0,102890.0,0.31997289]
[1746805017154,0.3318444,102900.0,102890.0,0.44067289]
[1746805017352,0.3318444,102900.0,102890.0,0.24630029]
[1746805017564,0.3318444,102900.0,102890.0,0.34350563]
[1746805018171,0.4058568,102900.0,102890.0,0.34350563]
[1746805018463,0.4068568,102900.0,102890.0,0.53787823]
[1746805018668,0.4068568,102900.0,102890.0,0.34350563]
[1746805018962,0.4482568,102900.0,102890.0,0.34350563]
[1746805019560,0.4482568,102900.0,102890.0,0.53787823]
[1746805019761,0.4482568,102900.0,102890.0,0.34350563]
[1746805019961,0.4482568,102900.0,102890.0,0.53787823]
[1746805020162,0.4492568,102900.0,102890.0,0.53787823]
[1746805020471,0.1943726,102890.0,102880.0,0.1658]
[1746805020774,0.6728726,102890.0,102880.0,0.30478645]
[1746805020964,0.6728726,102890.0,102880.0,0.26298645]
[1746805021268,0.91905517,102890.0,102880.0,0.26298645]
[1746805021670,0.6728726,102890.0,102880.0,0.30478645]
[1746805021967,0.91905517,102890.0,102880.0,0.26398645]
[1746805022156,1.17625117,102890.0,102880.0,0.001]
[1746805022362,1.17625117,102890.0,102880.0,0.002]
[1746805022565,1.07905517,102890.0,102880.0,0.002]
[1746805022761,0.8328726,102890.0,102880.0,0.0428]
[1746805022961,0.8328726,102890.0,102880.0,0.18159589]
[1746805023162,0.6728726,102890.0,102880.0,0.18159589]
[1746805023469,0.91905517,102890.0,102880.0,0.09919589]
[1746805025170,1.07905517,102890.0,102880.0,0.09919589]
[1746805025662,0.3924726,102890.0,102880.0,0.85828768]
[1746805025869,0.3924726,102890.0,102880.0,1.02408768]
[1746805026169,0.2324726,102890.0,102880.0,1.02408768]
[1746805026771,0.2324726,102890.0,102880.0,1.03875727]
[1746805027174,0.5932726,102890.0,102880.0,0.67795727]
[1746805027668,0.87362292,102900.0,102880.0,0.48356577]
[1746805027867,0.45523982,102900.0,102890.0,0.44057289]
[1746805028068,0.81603982,102900.0,102890.0,0.45524248]
[1746805028273,0.45523982,102900.0,102890.0,0.45524248]
[1746805028469,0.45523982,102900.0,102890.0,0.55243365]
[1746805028669,0.45523982,102900.0,102890.0,0.55243311]
[1746805028971,0.45623982,102900.0,102890.0,0.55243311]
[1746805029169,0.45723982,102900.0,102890.0,0.55243311]
[1746805030371,0.3585737,102900.0,102890.0,0.55243311]
[1746805031170,0.3585737,102900.0,102890.0,0.35806051]
[1746805032067,0.3585737,102900.0,102890.0,0.55243311]